[Event "*** Titled Tuesday Blitz"]
[Site "Chess.com"]
[Date "2020.11.03"]
[Round "6"]
[White "Crazy_girl99"]
[Black "tsvet2005"]
[Result "1-0"]
[WhiteElo "2539"]
[BlackElo "2694"]
[TimeControl "180+1"]
[EndTime "11:10:18 PST"]
[Termination "Crazy_girl99 won on time"]

1. e4 {[%clk 0:03:00.9]} 1... c5 {[%clk 0:03:00.3]} 2. Nf3 {[%clk 0:03:00.7]}
2... d6 {[%clk 0:03:00.8]} 3. d4 {[%clk 0:03:00.7]} 3... cxd4 {[%clk 0:03:01.7]}
4. Nxd4 {[%clk 0:03:01.1]} 4... Nf6 {[%clk 0:03:02.6]} 5. Nc3 {[%clk 0:03:01.3]}
5... a6 {[%clk 0:03:03.1]} 6. h3 {[%clk 0:02:57.4]} 6... e5 {[%clk 0:03:00.9]}
7. Nde2 {[%clk 0:02:57]} 7... b5 {[%clk 0:03:01.5]} 8. Ng3 {[%clk 0:02:54.6]}
8... Be6 {[%clk 0:02:44]} 9. a3 {[%clk 0:02:51.2]} 9... Nbd7 {[%clk 0:02:41.4]}
10. Be3 {[%clk 0:02:51.1]} 10... Be7 {[%clk 0:02:40.7]} 11. Be2 {[%clk
0:02:49.8]} 11... O-O {[%clk 0:02:40.4]} 12. O-O {[%clk 0:02:46.7]} 12... Nb6
{[%clk 0:02:40.9]} 13. f4 {[%clk 0:02:28.2]} 13... Nc4 {[%clk 0:02:35]} 14. Bxc4
{[%clk 0:02:22.9]} 14... Bxc4 {[%clk 0:02:35.9]} 15. Rf2 {[%clk 0:02:21.8]}
15... exf4 {[%clk 0:02:33.5]} 16. Bxf4 {[%clk 0:02:15.5]} 16... Be6 {[%clk
0:02:07.8]} 17. Kh1 {[%clk 0:02:05.9]} 17... d5 {[%clk 0:01:59.1]} 18. e5 {[%clk
0:01:53.2]} 18... Ne8 {[%clk 0:01:47.4]} 19. Qf3 {[%clk 0:01:46.6]} 19... Nc7
{[%clk 0:01:39.5]} 20. Rd1 {[%clk 0:01:46.3]} 20... a5 {[%clk 0:01:33.8]} 21.
Be3 {[%clk 0:01:32.6]} 21... b4 {[%clk 0:01:29.2]} 22. axb4 {[%clk 0:01:32.6]}
22... axb4 {[%clk 0:01:30.1]} 23. Nce2 {[%clk 0:01:33.1]} 23... Nb5 {[%clk
0:01:20.7]} 24. Nf4 {[%clk 0:01:26.1]} 24... d4 {[%clk 0:01:01.7]} 25. Nge2
{[%clk 0:01:04.9]} 25... Bc5 {[%clk 0:00:35.9]} 26. Qc6 {[%clk 0:00:17.6]} 26...
dxe3 {[%clk 0:00:32.1]} 27. Rxd8 {[%clk 0:00:17.4]} 27... exf2 {[%clk
0:00:32.6]} 28. Rxf8+ {[%clk 0:00:17.6]} 28... Rxf8 {[%clk 0:00:31.1]} 29. Ng3
{[%clk 0:00:17.8]} 29... Rc8 {[%clk 0:00:11.9]} 30. Qxb5 {[%clk 0:00:17.6]}
30... b3 {[%clk 0:00:05.2]} 31. c3 {[%clk 0:00:16.4]} 31... Be3 {[%clk
0:00:03.5]} 32. Nxe6 {[%clk 0:00:16]} 32... fxe6 {[%clk 0:00:04.4]} 33. Qxb3
{[%clk 0:00:15.6]} 33... Rd8 {[%clk 0:00:03.1]} 34. Qxe6+ {[%clk 0:00:14.1]}
34... Kh8 {[%clk 0:00:03.6]} 35. Qg4 {[%clk 0:00:13.8]} 35... h6 {[%clk
0:00:02.2]} 36. Nf1 {[%clk 0:00:13.8]} 36... Bb6 {[%clk 0:00:01.5]} 37. g3
{[%clk 0:00:14.2]} 1-0

[Event "*** Titled Tuesday Blitz"]
[Site "Chess.com"]
[Date "2020.11.03"]
[Round "6"]
[White "DryCounty"]
[Black "Kolle05"]
[Result "1-0"]
[WhiteElo "2564"]
[BlackElo "2352"]
[TimeControl "180+1"]
[EndTime "11:10:20 PST"]
[Termination "DryCounty won by checkmate"]

1. e4 {[%clk 0:03:00.9]} 1... c5 {[%clk 0:02:56.8]} 2. Nf3 {[%clk 0:03:00.2]}
2... d6 {[%clk 0:02:56.9]} 3. d4 {[%clk 0:03:00.1]} 3... cxd4 {[%clk 0:02:57.8]}
4. Nxd4 {[%clk 0:03:00.3]} 4... Nf6 {[%clk 0:02:58.3]} 5. Nc3 {[%clk 0:03:00.8]}
5... a6 {[%clk 0:02:58.4]} 6. Be2 {[%clk 0:03:01.3]} 6... e5 {[%clk 0:02:58]} 7.
Nb3 {[%clk 0:03:00.8]} 7... Be7 {[%clk 0:02:57.1]} 8. O-O {[%clk 0:02:58.9]}
8... O-O {[%clk 0:02:56.9]} 9. Qd3 {[%clk 0:02:59]} 9... Be6 {[%clk 0:02:53.5]}
10. Bd2 {[%clk 0:02:57.7]} 10... Nbd7 {[%clk 0:02:43.9]} 11. Nd5 {[%clk
0:02:57.5]} 11... Bxd5 {[%clk 0:02:44]} 12. exd5 {[%clk 0:02:57.6]} 12... Ne8
{[%clk 0:02:39.4]} 13. c4 {[%clk 0:02:57.3]} 13... Rc8 {[%clk 0:02:25.4]} 14.
Na5 {[%clk 0:02:56.4]} 14... Nc5 {[%clk 0:02:00.7]} 15. Qa3 {[%clk 0:02:55.8]}
15... Qd7 {[%clk 0:01:50.5]} 16. b4 {[%clk 0:02:54]} 16... Ne4 {[%clk 0:01:50]}
17. Be3 {[%clk 0:02:48.3]} 17... f5 {[%clk 0:01:46.8]} 18. f3 {[%clk 0:02:46.8]}
18... N4f6 {[%clk 0:01:29.5]} 19. Rad1 {[%clk 0:02:38.9]} 19... f4 {[%clk
0:01:23.8]} 20. Bf2 {[%clk 0:02:38.7]} 20... e4 {[%clk 0:01:22.6]} 21. Bd4
{[%clk 0:02:36.9]} 21... Bd8 {[%clk 0:01:12.3]} 22. c5 {[%clk 0:02:27]} 22...
Bxa5 {[%clk 0:00:48.6]} 23. Qxa5 {[%clk 0:02:26.8]} 23... Kh8 {[%clk 0:00:35.4]}
24. c6 {[%clk 0:02:21]} 24... bxc6 {[%clk 0:00:34.7]} 25. dxc6 {[%clk
0:02:20.9]} 25... Qxc6 {[%clk 0:00:32.2]} 26. Qxa6 {[%clk 0:02:18.2]} 26... Qxa6
{[%clk 0:00:29.5]} 27. Bxa6 {[%clk 0:02:18]} 27... Rc2 {[%clk 0:00:29.8]} 28.
fxe4 {[%clk 0:02:10.5]} 28... Rxa2 {[%clk 0:00:22.1]} 29. Bc4 {[%clk 0:02:05.3]}
29... Ra4 {[%clk 0:00:21.6]} 30. Rb1 {[%clk 0:01:54.4]} 30... Nxe4 {[%clk
0:00:20.8]} 31. Rfd1 {[%clk 0:01:53]} 31... N8f6 {[%clk 0:00:20.2]} 32. Bb5
{[%clk 0:01:44.5]} 32... Ra2 {[%clk 0:00:19.4]} 33. Bc4 {[%clk 0:01:44.5]} 33...
Ra4 {[%clk 0:00:17.6]} 34. Bb5 {[%clk 0:01:43]} 34... Ra2 {[%clk 0:00:17.4]} 35.
Ra1 {[%clk 0:01:43.4]} 35... Rxa1 {[%clk 0:00:16.1]} 36. Rxa1 {[%clk 0:01:42.9]}
36... Rb8 {[%clk 0:00:16.4]} 37. Bc6 {[%clk 0:01:38.4]} 37... h6 {[%clk
0:00:11.6]} 38. b5 {[%clk 0:01:37.1]} 38... Nc5 {[%clk 0:00:07.6]} 39. Ra8
{[%clk 0:01:32]} 39... Rxa8 {[%clk 0:00:07]} 40. Bxa8 {[%clk 0:01:32.5]} 40...
Nfd7 {[%clk 0:00:07.3]} 41. Bc6 {[%clk 0:01:30.8]} 41... Nb6 {[%clk 0:00:07.6]}
42. Kf2 {[%clk 0:01:27.6]} 42... Kg8 {[%clk 0:00:07.1]} 43. Kf3 {[%clk
0:01:25.8]} 43... g5 {[%clk 0:00:07.2]} 44. Kg4 {[%clk 0:01:23]} 44... Kf7
{[%clk 0:00:07.3]} 45. Kf5 {[%clk 0:01:23.4]} 45... Ke7 {[%clk 0:00:03.4]} 46.
Bg7 {[%clk 0:01:20.1]} 46... d5 {[%clk 0:00:02.2]} 47. Bxh6 {[%clk 0:01:17.3]}
47... Kd6 {[%clk 0:00:02.6]} 48. Bxg5 {[%clk 0:01:16.6]} 48... Ne4 {[%clk
0:00:02.8]} 49. Bxf4+ {[%clk 0:01:16.4]} 49... Kc5 {[%clk 0:00:02.6]} 50. h4
{[%clk 0:01:15.3]} 50... Nc3 {[%clk 0:00:01.4]} 51. h5 {[%clk 0:01:14.8]} 51...
Nxb5 {[%clk 0:00:02]} 52. Bxb5 {[%clk 0:01:14.9]} 52... Kxb5 {[%clk 0:00:02.9]}
53. h6 {[%clk 0:01:15.3]} 53... Nd7 {[%clk 0:00:03.3]} 54. h7 {[%clk 0:01:15]}
54... d4 {[%clk 0:00:03.6]} 55. h8=Q {[%clk 0:01:14.8]} 55... d3 {[%clk
0:00:04.5]} 56. Qc3 {[%clk 0:01:14.3]} 56... Nc5 {[%clk 0:00:05.4]} 57. Be3
{[%clk 0:01:13.7]} 57... d2 {[%clk 0:00:03.4]} 58. Qxd2 {[%clk 0:01:12.8]} 58...
Ka4 {[%clk 0:00:04.3]} 59. Bxc5 {[%clk 0:01:12]} 59... Kb3 {[%clk 0:00:05.2]}
60. Qb4+ {[%clk 0:01:11.7]} 60... Kc2 {[%clk 0:00:04.7]} 61. Ke4 {[%clk
0:01:11.8]} 61... Kd1 {[%clk 0:00:04.7]} 62. Kd3 {[%clk 0:01:11.6]} 62... Kc1
{[%clk 0:00:05.6]} 63. Qd2+ {[%clk 0:01:11.5]} 63... Kb1 {[%clk 0:00:05.7]} 64.
Qc2+ {[%clk 0:01:11.8]} 64... Ka1 {[%clk 0:00:06.6]} 65. Bd4# {[%clk 0:01:12.1]}
1-0

[Event "*** Titled Tuesday Blitz"]
[Site "Chess.com"]
[Date "2020.11.03"]
[Round "6"]
[White "winniethepooh04"]
[Black "akanga001"]
[Result "1-0"]
[WhiteElo "2229"]
[BlackElo "1924"]
[TimeControl "180+1"]
[EndTime "11:10:21 PST"]
[Termination "winniethepooh04 won on time"]

1. d4 {[%clk 0:03:00.9]} 1... Nf6 {[%clk 0:02:57.1]} 2. Nf3 {[%clk 0:03:00]}
2... c5 {[%clk 0:02:57.5]} 3. c3 {[%clk 0:02:59.2]} 3... e6 {[%clk 0:02:57.3]}
4. Bf4 {[%clk 0:02:59.7]} 4... Nc6 {[%clk 0:02:56.4]} 5. e3 {[%clk 0:02:59]}
5... Be7 {[%clk 0:02:56]} 6. Nbd2 {[%clk 0:02:58.5]} 6... b6 {[%clk 0:02:55.9]}
7. h3 {[%clk 0:02:58.5]} 7... Bb7 {[%clk 0:02:55.9]} 8. Bd3 {[%clk 0:02:59]}
8... O-O {[%clk 0:02:54.7]} 9. O-O {[%clk 0:02:59]} 9... d5 {[%clk 0:02:54.5]}
10. Qe2 {[%clk 0:02:58.1]} 10... Rc8 {[%clk 0:02:39.1]} 11. dxc5 {[%clk
0:02:56.8]} 11... bxc5 {[%clk 0:02:37.2]} 12. e4 {[%clk 0:02:57.2]} 12... dxe4
{[%clk 0:02:30.2]} 13. Nxe4 {[%clk 0:02:58.1]} 13... Nd5 {[%clk 0:02:21.3]} 14.
Bh2 {[%clk 0:02:57.5]} 14... g6 {[%clk 0:02:15.1]} 15. Rad1 {[%clk 0:02:54.4]}
15... Qa5 {[%clk 0:02:10.3]} 16. a3 {[%clk 0:02:51.5]} 16... a6 {[%clk
0:01:40.5]} 17. Rfe1 {[%clk 0:02:50.7]} 17... Rfe8 {[%clk 0:01:38]} 18. Bb1
{[%clk 0:02:41.4]} 18... Kg7 {[%clk 0:01:26.1]} 19. c4 {[%clk 0:02:39.3]} 19...
Nf6 {[%clk 0:01:08.5]} 20. Nd6 {[%clk 0:02:39]} 20... Bxd6 {[%clk 0:01:06.3]}
21. Bxd6 {[%clk 0:02:39.9]} 21... e5 {[%clk 0:00:56.8]} 22. Qd2 {[%clk
0:02:08.6]} 22... e4 {[%clk 0:00:54.6]} 23. Qxa5 {[%clk 0:02:03.3]} 23... Nxa5
{[%clk 0:00:52.2]} 24. Nd2 {[%clk 0:02:02]} 24... Re6 {[%clk 0:00:39.4]} 25. Bf4
{[%clk 0:01:58.4]} 25... Nh5 {[%clk 0:00:35.7]} 26. Be3 {[%clk 0:01:58.2]} 26...
f5 {[%clk 0:00:29.2]} 27. g3 {[%clk 0:01:57]} 27... Nf6 {[%clk 0:00:28]} 28. Rc1
{[%clk 0:01:56.1]} 28... Re5 {[%clk 0:00:21.6]} 29. b4 {[%clk 0:01:55]} 29...
cxb4 {[%clk 0:00:17.1]} 30. axb4 {[%clk 0:01:55.9]} 30... Nc6 {[%clk 0:00:16.9]}
31. Bc5 {[%clk 0:01:55.1]} 31... Ree8 {[%clk 0:00:14.3]} 32. b5 {[%clk
0:01:50.8]} 32... axb5 {[%clk 0:00:13.3]} 33. cxb5 {[%clk 0:01:51.7]} 33... Ne5
{[%clk 0:00:13.8]} 34. Be3 {[%clk 0:01:50.1]} 34... Nd3 {[%clk 0:00:12.5]} 35.
Bxd3 {[%clk 0:01:46.1]} 35... exd3 {[%clk 0:00:13.4]} 36. Nc4 {[%clk 0:01:44.2]}
36... Nd5 {[%clk 0:00:09.3]} 37. Bd4+ {[%clk 0:01:41.6]} 37... Kh6 {[%clk
0:00:08.1]} 38. Red1 {[%clk 0:01:35.8]} 38... f4 {[%clk 0:00:06.6]} 39. gxf4
{[%clk 0:01:35.2]} 39... Nxf4 {[%clk 0:00:05.8]} 40. Be3 {[%clk 0:01:35.5]}
40... g5 {[%clk 0:00:05.7]} 41. Bxf4 {[%clk 0:01:35.6]} 41... gxf4 {[%clk
0:00:06.5]} 42. Rxd3 {[%clk 0:01:30]} 42... Rg8+ {[%clk 0:00:07.4]} 43. Kf1
{[%clk 0:01:29.8]} 43... Bg2+ {[%clk 0:00:06.1]} 44. Ke1 {[%clk 0:01:27.9]}
44... Bf3 {[%clk 0:00:07]} 45. Kd2 {[%clk 0:01:26.2]} 45... Bg2 {[%clk
0:00:07.9]} 46. Rd6+ {[%clk 0:01:25.7]} 46... Kh5 {[%clk 0:00:06.5]} 47. b6
{[%clk 0:01:25.2]} 47... Bxh3 {[%clk 0:00:07.3]} 48. Rh1 {[%clk 0:01:24.3]}
48... Kg4 {[%clk 0:00:04.6]} 49. Rg1+ {[%clk 0:01:21.4]} 49... Kf3 {[%clk
0:00:03.8]} 50. Ne5+ {[%clk 0:01:19.2]} 50... Kxf2 {[%clk 0:00:03.5]} 51. Rh1
{[%clk 0:01:18.7]} 51... Bg2 {[%clk 0:00:01.8]} 52. Rxh7 {[%clk 0:01:18.8]}
52... f3 {[%clk 0:00:01.9]} 53. b7 {[%clk 0:01:16.5]} 53... Kg1 {[%clk
0:00:02.7]} 54. bxc8=Q {[%clk 0:01:15.1]} 54... Rxc8 {[%clk 0:00:01.7]} 55. Rg7
{[%clk 0:01:15.5]} 55... Ra8 {[%clk 0:00:02.1]} 56. Nxf3+ {[%clk 0:01:15.5]} 1-0

[Event "*** Titled Tuesday Blitz"]
[Site "Chess.com"]
[Date "2020.11.03"]
[Round "6"]
[White "glebus008"]
[Black "Qvalda"]
[Result "1-0"]
[WhiteElo "2315"]
[BlackElo "2393"]
[TimeControl "180+1"]
[EndTime "11:10:22 PST"]
[Termination "glebus008 won on time"]

1. e4 {[%clk 0:03:00.9]} 1... e6 {[%clk 0:02:59.3]} 2. d4 {[%clk 0:03:00.4]}
2... d5 {[%clk 0:02:59.9]} 3. e5 {[%clk 0:03:01]} 3... c5 {[%clk 0:02:59.5]} 4.
c3 {[%clk 0:03:01.6]} 4... Nc6 {[%clk 0:03:00.1]} 5. Nf3 {[%clk 0:03:01.3]} 5...
Qb6 {[%clk 0:02:59]} 6. a3 {[%clk 0:02:59.5]} 6... Bd7 {[%clk 0:02:58.3]} 7. b4
{[%clk 0:02:58.8]} 7... cxd4 {[%clk 0:02:58.4]} 8. cxd4 {[%clk 0:02:59.7]} 8...
Rc8 {[%clk 0:02:58.4]} 9. Bb2 {[%clk 0:02:58.1]} 9... Na5 {[%clk 0:02:57.5]} 10.
Nbd2 {[%clk 0:02:57.6]} 10... Nc4 {[%clk 0:02:57]} 11. Bxc4 {[%clk 0:02:55.8]}
11... dxc4 {[%clk 0:02:57.9]} 12. Rc1 {[%clk 0:02:55]} 12... Qa6 {[%clk
0:02:54.4]} 13. O-O {[%clk 0:02:44.3]} 13... b5 {[%clk 0:02:53.2]} 14. Ng5
{[%clk 0:02:35.4]} 14... Bc6 {[%clk 0:02:46.6]} 15. Nde4 {[%clk 0:02:04.3]}
15... h6 {[%clk 0:02:37.9]} 16. Qh5 {[%clk 0:01:49.6]} 16... g6 {[%clk
0:02:25.4]} 17. Qh3 {[%clk 0:01:49.3]} 17... Bg7 {[%clk 0:01:26.5]} 18. Nd6+
{[%clk 0:01:46.5]} 18... Kf8 {[%clk 0:01:17.7]} 19. Ngxf7 {[%clk 0:01:35.7]}
19... Rh7 {[%clk 0:00:56]} 20. Qxe6 {[%clk 0:01:25.6]} 20... Ra8 {[%clk
0:00:39.5]} 21. Qxg6 {[%clk 0:01:19.3]} 21... Ne7 {[%clk 0:00:21.5]} 22. Qxh7
{[%clk 0:01:13.3]} 22... Qb6 {[%clk 0:00:16.7]} 23. Nxh6 {[%clk 0:01:00.1]}
23... Bd5 {[%clk 0:00:15.9]} 24. Nhf5 {[%clk 0:00:46.7]} 24... Nxf5 {[%clk
0:00:13]} 25. Nxf5 {[%clk 0:00:40.5]} 25... Qb7 {[%clk 0:00:08.4]} 26. Qxg7+
{[%clk 0:00:34.8]} 26... Qxg7 {[%clk 0:00:09.3]} 27. Nxg7 {[%clk 0:00:35.3]}
27... Kxg7 {[%clk 0:00:10.1]} 28. f3 {[%clk 0:00:35.3]} 28... Kg6 {[%clk
0:00:09.7]} 29. Bc3 {[%clk 0:00:35.5]} 29... Kf5 {[%clk 0:00:09.3]} 30. Kf2
{[%clk 0:00:35.5]} 30... Rh8 {[%clk 0:00:08.5]} 31. g4+ {[%clk 0:00:34.4]} 31...
Ke6 {[%clk 0:00:07.2]} 32. Kg3 {[%clk 0:00:33.7]} 32... Bc6 {[%clk 0:00:02.7]}
33. f4 {[%clk 0:00:33.7]} 33... Kd5 {[%clk 0:00:03]} 34. Rce1 {[%clk 0:00:32.2]}
34... Bd7 {[%clk 0:00:02.9]} 35. f5 {[%clk 0:00:32.1]} 35... Rg8 {[%clk
0:00:02.2]} 36. e6 {[%clk 0:00:32.2]} 36... Be8 {[%clk 0:00:02.2]} 37. Re5+
{[%clk 0:00:32.1]} 37... Kd6 {[%clk 0:00:02.7]} 38. f6 {[%clk 0:00:29.3]} 38...
Bh5 {[%clk 0:00:01.1]} 39. Rxh5 {[%clk 0:00:26.6]} 1-0

[Event "*** Titled Tuesday Blitz"]
[Site "Chess.com"]
[Date "2020.11.03"]
[Round "6"]
[White "Nara_Kh"]
[Black "RobPeresian"]
[Result "1-0"]
[WhiteElo "2350"]
[BlackElo "2448"]
[TimeControl "180+1"]
[EndTime "11:10:25 PST"]
[Termination "Nara_Kh won by resignation"]

1. e4 {[%clk 0:03:00.9]} 1... e5 {[%clk 0:02:58.5]} 2. Nf3 {[%clk 0:03:00.1]}
2... Nc6 {[%clk 0:02:57.3]} 3. Bb5 {[%clk 0:02:59.4]} 3... a6 {[%clk 0:02:56.7]}
4. Ba4 {[%clk 0:02:59]} 4... Nf6 {[%clk 0:02:56.6]} 5. O-O {[%clk 0:02:58.1]}
5... Be7 {[%clk 0:02:56.8]} 6. d3 {[%clk 0:02:57.7]} 6... b5 {[%clk 0:02:53.6]}
7. Bb3 {[%clk 0:02:57.8]} 7... d6 {[%clk 0:02:49.8]} 8. h3 {[%clk 0:02:57]} 8...
Na5 {[%clk 0:02:49.2]} 9. a4 {[%clk 0:02:50.4]} 9... Nxb3 {[%clk 0:02:46.6]} 10.
cxb3 {[%clk 0:02:51.3]} 10... Rb8 {[%clk 0:02:47]} 11. Nc3 {[%clk 0:02:49.8]}
11... O-O {[%clk 0:02:46]} 12. Re1 {[%clk 0:02:45.1]} 12... Re8 {[%clk
0:02:44.2]} 13. d4 {[%clk 0:02:45]} 13... Nd7 {[%clk 0:02:32.6]} 14. Nd5 {[%clk
0:02:23.6]} 14... Bf8 {[%clk 0:02:32.1]} 15. Bg5 {[%clk 0:02:10.7]} 15... f6
{[%clk 0:02:31.7]} 16. Bh4 {[%clk 0:02:09.8]} 16... c6 {[%clk 0:02:28.1]} 17.
Ne3 {[%clk 0:02:07.4]} 17... Qc7 {[%clk 0:02:17.6]} 18. b4 {[%clk 0:01:56.1]}
18... g6 {[%clk 0:02:10.3]} 19. Qb3+ {[%clk 0:01:48.8]} 19... Kg7 {[%clk
0:02:10.5]} 20. Rac1 {[%clk 0:01:43.3]} 20... Qb6 {[%clk 0:01:58.6]} 21. a5
{[%clk 0:01:39.8]} 21... Qb7 {[%clk 0:01:57]} 22. dxe5 {[%clk 0:01:34.1]} 22...
Nxe5 {[%clk 0:01:52.8]} 23. Nd4 {[%clk 0:01:33]} 23... Bd7 {[%clk 0:01:50.4]}
24. f4 {[%clk 0:01:30.8]} 24... Nf7 {[%clk 0:01:46.6]} 25. Ng4 {[%clk
0:00:46.5]} 25... Be7 {[%clk 0:01:39]} 26. Ne6+ {[%clk 0:00:39.5]} 26... Bxe6
{[%clk 0:01:06.2]} 27. Qxe6 {[%clk 0:00:40.4]} 27... g5 {[%clk 0:00:39.1]} 28.
fxg5 {[%clk 0:00:27.7]} 28... fxg5 {[%clk 0:00:37.6]} 29. Bf2 {[%clk 0:00:27.2]}
29... Ne5 {[%clk 0:00:27.2]} 30. Qh6+ {[%clk 0:00:23]} 30... Kg8 {[%clk
0:00:21.9]} 31. Bd4 {[%clk 0:00:22.4]} 31... Bd8 {[%clk 0:00:16.4]} 32. Rf1
{[%clk 0:00:14.8]} 32... Qg7 {[%clk 0:00:15.2]} 33. Qxd6 {[%clk 0:00:14.8]}
33... Bc7 {[%clk 0:00:12.9]} 34. Nf6+ {[%clk 0:00:14.6]} 34... Kh8 {[%clk
0:00:12.3]} 35. Nxe8 {[%clk 0:00:14.9]} 35... Bxd6 {[%clk 0:00:12.3]} 36. Nxg7
{[%clk 0:00:15]} 36... Kxg7 {[%clk 0:00:12.9]} 37. Rxc6 {[%clk 0:00:14.4]} 37...
Kg8 {[%clk 0:00:06.7]} 38. Rxd6 {[%clk 0:00:14.2]} 38... Nc4 {[%clk 0:00:07.6]}
39. Rd7 {[%clk 0:00:13.9]} 1-0

[Event "*** Titled Tuesday Blitz"]
[Site "Chess.com"]
[Date "2020.11.03"]
[Round "6"]
[White "Anton_Demchenko"]
[Black "sokidze"]
[Result "1-0"]
[WhiteElo "2836"]
[BlackElo "2535"]
[TimeControl "180+1"]
[EndTime "11:10:27 PST"]
[Termination "Anton_Demchenko won on time"]

1. e4 {[%clk 0:02:59.3]} 1... c6 {[%clk 0:03:00.4]} 2. d4 {[%clk 0:02:58.6]}
2... d5 {[%clk 0:03:00.7]} 3. Nc3 {[%clk 0:02:58.6]} 3... dxe4 {[%clk
0:03:00.7]} 4. Nxe4 {[%clk 0:02:59.5]} 4... Bf5 {[%clk 0:03:01.1]} 5. Ng3 {[%clk
0:02:59.1]} 5... Bg6 {[%clk 0:03:00.8]} 6. h4 {[%clk 0:02:59.6]} 6... h6 {[%clk
0:02:59.9]} 7. Nh3 {[%clk 0:03:00.2]} 7... Nf6 {[%clk 0:02:50.9]} 8. c3 {[%clk
0:02:59.3]} 8... Nbd7 {[%clk 0:02:45]} 9. Nf4 {[%clk 0:02:52.9]} 9... Bh7 {[%clk
0:02:44.9]} 10. Bd3 {[%clk 0:02:53.6]} 10... Bxd3 {[%clk 0:02:43.4]} 11. Nxd3
{[%clk 0:02:53.1]} 11... e6 {[%clk 0:02:39.1]} 12. Nh5 {[%clk 0:02:53.4]} 12...
Nxh5 {[%clk 0:02:36.2]} 13. Qxh5 {[%clk 0:02:54.3]} 13... Nf6 {[%clk 0:02:36.5]}
14. Qf3 {[%clk 0:02:54.9]} 14... Qd5 {[%clk 0:02:24.3]} 15. Qxd5 {[%clk
0:02:55.4]} 15... exd5 {[%clk 0:02:08.6]} 16. h5 {[%clk 0:02:52]} 16... Bd6
{[%clk 0:02:07.4]} 17. f3 {[%clk 0:02:51.8]} 17... Bg3+ {[%clk 0:02:05.9]} 18.
Kf1 {[%clk 0:02:49.9]} 18... Bd6 {[%clk 0:01:54.4]} 19. g4 {[%clk 0:02:48.1]}
19... O-O-O {[%clk 0:01:51.5]} 20. Kf2 {[%clk 0:02:42.2]} 20... Rde8 {[%clk
0:01:46.7]} 21. Bd2 {[%clk 0:02:34.6]} 21... Nd7 {[%clk 0:01:39.8]} 22. Rae1
{[%clk 0:02:23.9]} 22... Kd8 {[%clk 0:01:37.6]} 23. Rxe8+ {[%clk 0:02:10.9]}
23... Rxe8 {[%clk 0:01:38.5]} 24. Rg1 {[%clk 0:02:11.5]} 24... Nf6 {[%clk
0:01:25.6]} 25. a4 {[%clk 0:02:00.7]} 25... b6 {[%clk 0:01:21.1]} 26. b4 {[%clk
0:01:43.2]} 26... Nh7 {[%clk 0:01:05.3]} 27. g5 {[%clk 0:01:21.3]} 27... Nxg5
{[%clk 0:00:48.8]} 28. Bxg5+ {[%clk 0:01:22.2]} 28... hxg5 {[%clk 0:00:49.1]}
29. Rxg5 {[%clk 0:01:22.6]} 29... Ke7 {[%clk 0:00:47.3]} 30. f4 {[%clk
0:00:56.2]} 30... Kf6 {[%clk 0:00:27.6]} 31. Ne5 {[%clk 0:00:54.6]} 31... c5
{[%clk 0:00:27.9]} 32. b5 {[%clk 0:00:42.7]} 32... cxd4 {[%clk 0:00:24.7]} 33.
cxd4 {[%clk 0:00:43.6]} 33... Rc8 {[%clk 0:00:19.1]} 34. Ng4+ {[%clk 0:00:37.3]}
34... Ke6 {[%clk 0:00:16.7]} 35. f5+ {[%clk 0:00:37.8]} 35... Ke7 {[%clk
0:00:16.9]} 36. Rxg7 {[%clk 0:00:38]} 36... Rh8 {[%clk 0:00:16.1]} 37. h6 {[%clk
0:00:31.9]} 37... Bf4 {[%clk 0:00:16.2]} 38. h7 {[%clk 0:00:28.9]} 38... Kf8
{[%clk 0:00:05.7]} 39. f6 {[%clk 0:00:29]} 39... Bd6 {[%clk 0:00:03.5]} 40. Ne5
{[%clk 0:00:27.9]} 40... Bxe5 {[%clk 0:00:03.4]} 41. dxe5 {[%clk 0:00:28.8]}
41... Ke8 {[%clk 0:00:02.1]} 42. Ke2 {[%clk 0:00:27.2]} 42... Kf8 {[%clk
0:00:02.2]} 43. Kd3 {[%clk 0:00:27]} 1-0

[Event "*** Titled Tuesday Blitz"]
[Site "Chess.com"]
[Date "2020.11.03"]
[Round "6"]
[White "marabu44"]
[Black "sboshaon21"]
[Result "1-0"]
[WhiteElo "2256"]
[BlackElo "2025"]
[TimeControl "180+1"]
[EndTime "11:10:27 PST"]
[Termination "marabu44 won on time"]

1. Nf3 {[%clk 0:03:00.9]} 1... Nf6 {[%clk 0:02:57.4]} 2. b3 {[%clk 0:03:00.1]}
2... e6 {[%clk 0:02:53.9]} 3. Bb2 {[%clk 0:03:00.7]} 3... d5 {[%clk 0:02:54.3]}
4. e3 {[%clk 0:03:00.7]} 4... Bd6 {[%clk 0:02:53.4]} 5. Nc3 {[%clk 0:02:59.3]}
5... a6 {[%clk 0:02:51.1]} 6. Ne2 {[%clk 0:02:58.9]} 6... O-O {[%clk 0:02:49.5]}
7. Ng3 {[%clk 0:02:59.8]} 7... c5 {[%clk 0:02:46.1]} 8. Bd3 {[%clk 0:02:56.8]}
8... Nc6 {[%clk 0:02:41.2]} 9. O-O {[%clk 0:02:56.1]} 9... e5 {[%clk 0:02:40.2]}
10. e4 {[%clk 0:02:55.6]} 10... d4 {[%clk 0:02:32.9]} 11. a3 {[%clk 0:02:53.1]}
11... b5 {[%clk 0:02:29.9]} 12. Re1 {[%clk 0:02:51]} 12... h6 {[%clk 0:02:25.3]}
13. Nf5 {[%clk 0:02:49.9]} 13... Bxf5 {[%clk 0:02:22.3]} 14. exf5 {[%clk
0:02:49.5]} 14... Re8 {[%clk 0:02:15.1]} 15. Be4 {[%clk 0:02:47.9]} 15... Nxe4
{[%clk 0:02:11.5]} 16. Rxe4 {[%clk 0:02:47.4]} 16... Qf6 {[%clk 0:02:11.7]} 17.
g4 {[%clk 0:02:39.4]} 17... Ne7 {[%clk 0:02:04]} 18. d3 {[%clk 0:02:32.8]} 18...
Nd5 {[%clk 0:02:02.5]} 19. Qd2 {[%clk 0:02:20.2]} 19... Nf4 {[%clk 0:01:52.7]}
20. Kh1 {[%clk 0:02:15.7]} 20... g6 {[%clk 0:01:25.6]} 21. fxg6 {[%clk
0:02:05.4]} 21... fxg6 {[%clk 0:01:24.4]} 22. b4 {[%clk 0:01:35.2]} 22... c4
{[%clk 0:01:00.5]} 23. dxc4 {[%clk 0:01:33.4]} 23... bxc4 {[%clk 0:01:01.4]} 24.
Qe1 {[%clk 0:01:17.7]} 24... c3 {[%clk 0:00:26.7]} 25. Bc1 {[%clk 0:01:15.5]}
25... Nh3 {[%clk 0:00:18.1]} 26. Kg2 {[%clk 0:01:10.2]} 26... Ng5 {[%clk
0:00:17]} 27. Bxg5 {[%clk 0:00:56.2]} 27... hxg5 {[%clk 0:00:17.9]} 28. Qe2
{[%clk 0:00:40.8]} 28... Kg7 {[%clk 0:00:16.2]} 29. Re1 {[%clk 0:00:33.8]} 29...
Rf8 {[%clk 0:00:15.8]} 30. Nxe5 {[%clk 0:00:29.8]} 30... Bxe5 {[%clk 0:00:11.4]}
31. Rxe5 {[%clk 0:00:29.5]} 31... Ra7 {[%clk 0:00:09.3]} 32. Re6 {[%clk
0:00:27.9]} 32... Qf4 {[%clk 0:00:08.3]} 33. Qe5+ {[%clk 0:00:26.9]} 33... Qxe5
{[%clk 0:00:08.3]} 34. R6xe5 {[%clk 0:00:25.9]} 34... Raf7 {[%clk 0:00:03.8]}
35. Re7 {[%clk 0:00:22.9]} 35... Kh6 {[%clk 0:00:02.5]} 36. Rxf7 {[%clk
0:00:22.3]} 36... Rxf7 {[%clk 0:00:03.4]} 37. Rd1 {[%clk 0:00:22.4]} 37... Rf4
{[%clk 0:00:02.6]} 38. Kg3 {[%clk 0:00:20.1]} 38... Kg7 {[%clk 0:00:02.2]} 39.
f3 {[%clk 0:00:20.2]} 39... Kf6 {[%clk 0:00:01.6]} 40. Rd3 {[%clk 0:00:19.4]}
40... Ke5 {[%clk 0:00:01.2]} 41. a4 {[%clk 0:00:19.4]} 1-0